Cogmind - Beta 14 @@@ ROGUE MODE // 2024.08.28 @ 23:12:56 Player: APerTAS Result: Destroyed by G-50 Soldier with Heavy Laser Performance ------------- Evolutions (5) 2500 Regions Visited (12) 2400 Robots Destroyed (2) 10 Value Destroyed (70) 70 Prototype IDs (32) 640 Alien Tech Used (0) 0 Bonus (1000) 1000 TOTAL SCORE: 6620 Bonus ------- Pacifist 200 Entered DSFs 500 Aligned with FarCom 300 Cogmind --------- Core Integrity 0/1000 Matter 295/300 Energy 99/100 System Corruption 0% Temperature Cool (9) Movement Core (50) Location -5/Cetus Parts ------- > --- POWER (1) -------- (None) > --- PROPULSION (2) --- (None) > --- UTILITY (2) ------ Advanced Signal Interpreter > --- WEAPON (12) ------ (None) > --- INVENTORY (5) ---- Micro Nuclear Core Improved Matter Compressor (26) Peak State ------------ > --- POWER ------------ Light Deuterium Engine > --- PROPULSION ------- Improved VTOL Module Improved VTOL Module > --- UTILITY ---------- Transmission Jammer Reaction Control System > --- WEAPON ----------- Shotgun > --- INVENTORY -------- VTOL Module Improved Flight Unit Deploy-a-Sentry Deploy-a-Sentry Deploy-a-Sentry [Rating: 22] Favorites ----------- Power Light Deuterium Engine Engine Light Deuterium Engine Power Core Micro Nuclear Core Propulsion Improved VTOL Module Flight Unit Improved VTOL Module Utility Hacking Suite Device Transmission Jammer Storage Improved Matter Compressor Processor Advanced Signal Interpreter Hackware Hacking Suite Weapon Shotgun Ballistic Gun Shotgun Build | -11 -10 -9 -9 -9 -8 -8 -7 -6 -6 -5 -5 -5 ------- Run | Yrd Mat Mat Min Exi Min Mat Fac Fac DSF Fac Ext Cet Slots Evolved 10 | . . 2 . . . 2 2 2 . 2 . . Power . | . . . . . . . . . . . . . Propulsion . | . . . . . . . . . . . . . Utility . | . . . . . . . . . . . . . Weapon 10 | . . 2 . . . 2 2 2 . 2 . . Parts Attached 16 | . . 5 . . 1 3 1 . . 5 . 1 Power 5 | . . 1 . . . 2 . . . 1 . 1 Engine 3 | . . 1 . . . 2 . . . . . . Core 2 | . . . . . . . . . . 1 . 1 Reactor . | . . . . . . . . . . . . . Propulsion 5 | . . 3 . . . . . . . 2 . . Treads . | . . . . . . . . . . . . . Leg . | . . . . . . . . . . . . . Wheel . | . . . . . . . . . . . . . Hover . | . . . . . . . . . . . . . Flight 5 | . . 3 . . . . . . . 2 . . Utility 5 | . . . . . 1 1 1 . . 2 . . Device 2 | . . . . . 1 1 . . . . . . Storage 1 | . . . . . . . . . . 1 . . Processor 1 | . . . . . . . . . . 1 . . Hackware 1 | . . . . . . . 1 . . . . . Protection . | . . . . . . . . . . . . . Artifact . | . . . . . . . . . . . . . Weapon 1 | . . 1 . . . . . . . . . . Energy Gun . | . . . . . . . . . . . . . Energy Cannon . | . . . . . . . . . . . . . Ballistic Gun 1 | . . 1 . . . . . . . . . . Ballistic Cannon . | . . . . . . . . . . . . . Launcher . | . . . . . . . . . . . . . Special Weapon . | . . . . . . . . . . . . . Impact Weapon . | . . . . . . . . . . . . . Slashing Weapon . | . . . . . . . . . . . . . Piercing Weapon . | . . . . . . . . . . . . . Special Melee Weapon . | . . . . . . . . . . . . . Unidentified Prototypes 3 | . . 1 . . . 1 . . . 1 . . Parts Lost 9 | . . . . . . 2 1 . 1 1 3 1 Power 2 | . . . . . . 1 . . . . 1 . Propulsion 4 | . . . . . . . . . 1 1 1 1 Utility 2 | . . . . . . 1 . . . . 1 . Weapon 1 | . . . . . . . 1 . . . . . Highest Loss Streak 3 | . . . . . . 2 1 . 1 1 3 1 To Critical Strikes . | . . . . . . . . . . . . . Average Slot Usage (%) 28 | . . 30 44 44 55 49 36 . 24 20 27 9 Engine 3 | . . 7 11 11 11 9 . . . . . . Flight 12 | . . 17 22 22 22 18 15 . 10 11 11 2 Device 3 | . . . . . 11 13 7 . 6 1 . . Processor 1 | . . . . . . . . . . . 5 5 Hackware 2 | . . . . . . . 7 . 6 5 4 . Ballistic Gun 4 | . . 6 11 11 11 9 5 . . . . . Peak Build Rating 22 | . . 13 13 15 18 22 19 17 17 22 22 12 Average Rating 13 | . . 9 13 13 17 19 18 17 15 14 19 7 On Entrance 11 | . . . 13 13 15 18 16 17 17 13 22 9 Naked Turns 153 | . 134 19 . . . . . . . . . . Heaviest Build 10 | . . 8 8 8 9 10 4 1 1 6 6 . Greatest Support 10 | 3 3 10 10 10 10 10 10 10 10 10 10 5 Greatest Overweight (x) . | . . . . . . . . . . . . . Average Overweight (x) . | . . . . . . . . . . . . . Largest Inventory Capacity 5 | 5 5 5 5 5 5 5 5 5 5 5 5 5 Average Capacity 5 | 5 5 5 5 5 5 5 5 5 5 5 5 5 Most Carried 5 | . . 2 2 5 5 5 5 5 5 5 5 2 Average Carried 3 | . . . 2 3 5 5 5 5 5 4 2 1 Final Capacity 5 | 5 5 5 5 5 5 5 5 5 5 5 5 5 Final Carried 5 | . . 2 2 5 5 5 5 5 5 5 2 2 Class Distribution -------------------- 59% | Sprinter 40% | Mutant Dominant Class ---------------- Mutant | -10/Materials Sprinter | -9/Materials Sprinter | -9/Mines Sprinter | -9/Exiles Sprinter | -8/Mines Sprinter | -8/Materials Sprinter | -7/Factory Sprinter | -6/Factory Sprinter | -6/DSF Sprinter | -5/Factory Mutant | -5/Extension Mutant | -5/Cetus Resources | -11 -10 -9 -9 -9 -8 -8 -7 -6 -6 -5 -5 -5 ----------- Run | Yrd Mat Mat Min Exi Min Mat Fac Fac DSF Fac Ext Cet Matter Collected 353 | . . . 128 . . . 132 . . . 93 . Remotely . | . . . . . . . . . . . . . Salvage Created 89 | . . . 89 . . . . . . . . . Parts 5 | . . . 5 . . . . . . . . . Haulers Intercepted . | . . . . . . . . . . . . . Recyclers Shooed . | . . . . . . . . . . . . . Parts Field Recycled . | . . . . . . . . . . . . . Retrieved Matter . | . . . . . . . . . . . . . Parts Self-Destructed . | . . . . . . . . . . . . . Prevented . | . . . . . . . . . . . . . Kills | -11 -10 -9 -9 -9 -8 -8 -7 -6 -6 -5 -5 -5 ------- Run | Yrd Mat Mat Min Exi Min Mat Fac Fac DSF Fac Ext Cet Combat Hostiles Destroyed 2 | . . . 2 . . . . . . . . . Guns 2 | . . . 2 . . . . . . . . . Classes Destroyed 2 | . . . 2 . . . . . . . . . Grunt 1 | . . . 1 . . . . . . . . . Brawler 1 | . . . 1 . . . . . . . . . Best Kill Streak 2 | . . . 2 . . . . . . . . . Combat Bots Only 2 | . . . 2 . . . . . . . . . Max Kills in Single Turn 1 | . . . 1 . . . . . . . . . Gunslinging . | . . . . . . . . . . . . . Exploded . | . . . . . . . . . . . . . Melee . | . . . . . . . . . . . . . Uniques/NPCs Destroyed . | . . . . . . . . . . . . . Combat | -11 -10 -9 -9 -9 -8 -8 -7 -6 -6 -5 -5 -5 -------- Run | Yrd Mat Mat Min Exi Min Mat Fac Fac DSF Fac Ext Cet Hostile Shots Fired 223 | . 31 15 7 . 2 17 27 . 6 27 61 30 Missed 107 | . 12 9 5 . 1 3 15 . 3 13 33 13 Damage Taken 2023 | 8 216 81 21 . 18 151 154 . 172 222 548 432 Core 1551 | 8 216 44 11 . . 47 66 . 157 170 452 380 Absorbed by Shields . | . . . . . . . . . . . . . Core Remaining (%) 75 | 96 10 . . . 86 91 90 . 81 . . . Volleys Fired 6 | . . . 6 . . . . . . . . . Largest 1 | . . . 1 . . . . . . . . . Hottest 23 | . . . 23 . . . . . . . . . Shots Fired 6 | . . . 6 . . . . . . . . . Gun 6 | . . . 6 . . . . . . . . . Cannon . | . . . . . . . . . . . . . Launcher . | . . . . . . . . . . . . . Special . | . . . . . . . . . . . . . Kinetic 6 | . . . 6 . . . . . . . . . Thermal . | . . . . . . . . . . . . . Explosive . | . . . . . . . . . . . . . Electromagnetic . | . . . . . . . . . . . . . Robot Hit Streak 2 | . . . 2 . . . . . . . . . Robot Miss Streak 2 | . . . 2 . . . . . . . . . Penetration Max . | . . . . . . . . . . . . . Secondary Targets . | . . . . . . . . . . . . . Shots Hit Robots 5 | . . . 5 . . . . . . . . . Core Hits 4 | . . . 4 . . . . . . . . . Critical Kills . | . . . . . . . . . . . . . Critical Parts Destroyed . | . . . . . . . . . . . . . Critical Strikes . | . . . . . . . . . . . . . Melee Attacks . | . . . . . . . . . . . . . Impact . | . . . . . . . . . . . . . Slashing . | . . . . . . . . . . . . . Piercing . | . . . . . . . . . . . . . Sneak Attacks . | . . . . . . . . . . . . . Combat Hostiles . | . . . . . . . . . . . . . Follow-up Attacks . | . . . . . . . . . . . . . Damage Inflicted 86 | 16 5 . 65 . . . . . . . . . Guns 65 | . . . 65 . . . . . . . . . Cannons . | . . . . . . . . . . . . . Explosions . | . . . . . . . . . . . . . Melee . | . . . . . . . . . . . . . Ramming 21 | 16 5 . . . . . . . . . . . Kinetic 65 | . . . 65 . . . . . . . . . Thermal . | . . . . . . . . . . . . . Explosive . | . . . . . . . . . . . . . Electromagnetic . | . . . . . . . . . . . . . Impact . | . . . . . . . . . . . . . Slashing . | . . . . . . . . . . . . . Piercing . | . . . . . . . . . . . . . Highest Corruption 1 | . . . . . . . 1 . . . . . Average Corruption 1 | . . . . . . . 1 . . . . . Corruption Purged . | . . . . . . . . . . . . . Corruption Blocked . | . . . . . . . . . . . . . Overload Shots . | . . . . . . . . . . . . . Overflow Damage . | . . . . . . . . . . . . . Projectiles . | . . . . . . . . . . . . . Explosions . | . . . . . . . . . . . . . Melee . | . . . . . . . . . . . . . Knockbacks . | . . . . . . . . . . . . . Impact . | . . . . . . . . . . . . . Kinetic . | . . . . . . . . . . . . . Secondary . | . . . . . . . . . . . . . Self-Inflicted Damage 10 | 8 2 . . . . . . . . . . . Shots . | . . . . . . . . . . . . . Rammed 2 | 1 1 . . . . . . . . . . . Targets Rammed 2 | 1 1 . . . . . . . . . . . Kicked . | . . . . . . . . . . . . . Crushed . | . . . . . . . . . . . . . Highest Temperature . | . . . . . . . . . . . . . Average Temperature . | . . . . . . . . . . . . . Received Heat Transfer 327 | . 120 12 12 . 9 9 21 . . 9 36 99 Siege Activations . | . . . . . . . . . . . . . Robots Corrupted . | . . . . . . . . . . . . . Combat Hostiles . | . . . . . . . . . . . . . Parts Fried . | . . . . . . . . . . . . . Impact Corruptions . | . . . . . . . . . . . . . Robots Melted . | . . . . . . . . . . . . . Combat Hostiles . | . . . . . . . . . . . . . Parts Melted . | . . . . . . . . . . . . . Heat Transferred . | . . . . . . . . . . . . . Parts Sabotaged . | . . . . . . . . . . . . . Parts Stolen . | . . . . . . . . . . . . . Parts Stripped . | . . . . . . . . . . . . . Power Chain Reactions . | . . . . . . . . . . . . . Alert | -11 -10 -9 -9 -9 -8 -8 -7 -6 -6 -5 -5 -5 ------- Run | Yrd Mat Mat Min Exi Min Mat Fac Fac DSF Fac Ext Cet Peak Influence 174 | . 37 95 92 . 30 76 136 64 44 82 174 96 Initial 96 | . . 15 36 . . 11 36 64 44 17 39 96 Average 58 | . 30 22 82 . 2 23 89 64 40 45 82 91 Maximum Alert Level . | . . . . . . . . . . . . . Low Security (%) 100 | 100 100 100 100 . 100 100 100 100 100 100 100 100 Level 1 . | . . . . . . . . . . . . . Level 2 . | . . . . . . . . . . . . . Level 3 . | . . . . . . . . . . . . . Level 4 . | . . . . . . . . . . . . . Level 5 . | . . . . . . . . . . . . . High Security . | . . . . . . . . . . . . . Max Security . | . . . . . . . . . . . . . Squads Dispatched 15 | . 3 1 . . . . 2 . 1 2 3 3 Investigation 9 | . 3 . . . . . 2 . . . 1 3 Extermination . | . . . . . . . . . . . . . Reinforcement 6 | . . 1 . . . . . . 1 2 2 . Assault . | . . . . . . . . . . . . . Garrison . | . . . . . . . . . . . . . Intercept . | . . . . . . . . . . . . . Searches Triggered . | . . . . . . . . . . . . . Construction Impeded 1 | . . . . . . . . . . . 1 . Haulers Reinforced . | . . . . . . . . . . . . . Active Scanning Responses . | . . . . . . . . . . . . . Cargo Convoy Interrupts . | . . . . . . . . . . . . . Stealth | -11 -10 -9 -9 -9 -8 -8 -7 -6 -6 -5 -5 -5 --------- Run | Yrd Mat Mat Min Exi Min Mat Fac Fac DSF Fac Ext Cet Distress Signals 6 | . 1 3 . . . . . . . . 1 1 Communications Jammed 3 | . . . . . . 3 . . . . . . Distress Signals 3 | . . . . . . 3 . . . . . . Times Spotted 77 | . 9 11 2 . 3 10 4 . 2 9 13 14 Peak Tracking Total 12 | . 9 10 2 . 3 10 4 . 2 9 9 12 Tactical Retreats 6 | . . 1 . . 1 1 1 . . . 2 . Traps | -11 -10 -9 -9 -9 -8 -8 -7 -6 -6 -5 -5 -5 ------- Run | Yrd Mat Mat Min Exi Min Mat Fac Fac DSF Fac Ext Cet Traps Triggered 2 | . 1 . . . . . . . 1 . . . Indirectly . | . . . . . . . . . . . . . Trap Hack Attempts . | . . . . . . . . . . . . . Triggered . | . . . . . . . . . . . . . Disarmed . | . . . . . . . . . . . . . Reprogrammed . | . . . . . . . . . . . . . Reused . | . . . . . . . . . . . . . Traps Extracted . | . . . . . . . . . . . . . Installed . | . . . . . . . . . . . . . Triggered . | . . . . . . . . . . . . . Machines | -11 -10 -9 -9 -9 -8 -8 -7 -6 -6 -5 -5 -5 ---------- Run | Yrd Mat Mat Min Exi Min Mat Fac Fac DSF Fac Ext Cet Machines Disabled . | . . . . . . . . . . . . . Max in Single Turn . | . . . . . . . . . . . . . Machines Repaired . | . . . . . . . . . . . . . Machines Dismantled . | . . . . . . . . . . . . . Machines Sabotaged . | . . . . . . . . . . . . . Overloaded Fab Kills . | . . . . . . . . . . . . . Hacking | -11 -10 -9 -9 -9 -8 -8 -7 -6 -6 -5 -5 -5 --------- Run | Yrd Mat Mat Min Exi Min Mat Fac Fac DSF Fac Ext Cet Machines Accessed 16 | . 4 2 1 1 . . 2 1 . 1 1 3 Terminals 14 | . 4 1 1 . . . 2 1 . 1 1 3 Fabricators . | . . . . . . . . . . . . . Repair Stations . | . . . . . . . . . . . . . Recycling Units . | . . . . . . . . . . . . . Scanalyzers 1 | . . 1 . . . . . . . . . . Garrison Access . | . . . . . . . . . . . . . Total Hacks 44 | . 14 3 3 1 . . 6 1 . 1 3 12 Successful 19 | . 5 2 2 1 . . 3 1 . 1 1 3 Failed 24 | . 8 1 1 . . . 3 . . . 2 9 Catastrophic 4 | . 2 . . . . . 1 . . . . 1 Database Lockouts 1 | . 1 . . . . . . . . . . . Manual 22 | . 15 . 3 1 . . 3 . . . . . Terminals 42 | . 14 2 3 . . . 6 1 . 1 3 12 Fabricators . | . . . . . . . . . . . . . Repair Stations . | . . . . . . . . . . . . . Recycling Units . | . . . . . . . . . . . . . Scanalyzers 1 | . . 1 . . . . . . . . . . Garrison Access . | . . . . . . . . . . . . . Terminal Hacks 13 | . 2 1 2 1 . . 1 1 . 1 1 3 Record 4 | . . . . . . . 1 . . . . 3 Prototype ID Bank 4 | . 2 1 1 . . . . . . . . . Open Door 1 | . . . . . . . . . . . 1 . Open DSF 2 | . . . . . . . . 1 . 1 . . Level Access Points 1 | . . . 1 . . . . . . . . . Derelict Proto ID Bank 1 | . . . . 1 . . . . . . . . Fabricator Hacks . | . . . . . . . . . . . . . Repair Station Hacks . | . . . . . . . . . . . . . Recycling Unit Hacks . | . . . . . . . . . . . . . Scanalyzer 1 | . . 1 . . . . . . . . . . Insert Component 1 | . . 1 . . . . . . . . . . Garrison Access Hacks . | . . . . . . . . . . . . . Unauthorized Hacks 5 | . 3 . . . . . 2 . . . . . Terminals 5 | . 3 . . . . . 2 . . . . . Botnet 3 | . 2 . . . . . 1 . . . . . Detonate 1 | . 1 . . . . . . . . . . . Disrupt 1 | . . . . . . . 1 . . . . . Fabricators . | . . . . . . . . . . . . . Repair Stations . | . . . . . . . . . . . . . Recycling Units . | . . . . . . . . . . . . . Scanalyzers . | . . . . . . . . . . . . . Garrison Access . | . . . . . . . . . . . . . Data Cores Recovered . | . . . . . . . . . . . . . Used . | . . . . . . . . . . . . . Hacking Detections 13 | . 4 1 1 . . . 2 . . 1 1 3 Full Trace Events 9 | . 3 . . . . . 2 . . . 1 3 Feedback Events . | . . . . . . . . . . . . . Feedback Blocked . | . . . . . . . . . . . . . Robot Schematics Acquired . | . . . . . . . . . . . . . Robots Built . | . . . . . . . . . . . . . Authchips . | . . . . . . . . . . . . . Time . | . . . . . . . . . . . . . Total Robot Build Rating . | . . . . . . . . . . . . . Part Schematics Acquired . | . . . . . . . . . . . . . Parts Built . | . . . . . . . . . . . . . Authchips . | . . . . . . . . . . . . . Time . | . . . . . . . . . . . . . Total Part Build Rating . | . . . . . . . . . . . . . Parts Repaired . | . . . . . . . . . . . . . Time . | . . . . . . . . . . . . . Parts Recycled . | . . . . . . . . . . . . . Recycled Matter . | . . . . . . . . . . . . . Retrieved Matter . | . . . . . . . . . . . . . Retrieved Components . | . . . . . . . . . . . . . Parts Scanalyzed . | . . . . . . . . . . . . . Part Schematics Acquired . | . . . . . . . . . . . . . Parts Damaged . | . . . . . . . . . . . . . Bothacking | -11 -10 -9 -9 -9 -8 -8 -7 -6 -6 -5 -5 -5 ------------ Run | Yrd Mat Mat Min Exi Min Mat Fac Fac DSF Fac Ext Cet Used RIF Installer . | . . . . . . . . . . . . . Robots Hacked . | . . . . . . . . . . . . . Non-combat . | . . . . . . . . . . . . . Combat . | . . . . . . . . . . . . . Robot Hacks Applied . | . . . . . . . . . . . . . Relay Couplers Released . | . . . . . . . . . . . . . Fabnet Peak Effective % . | . . . . . . . . . . . . . Robots Rewired . | . . . . . . . . . . . . . Allies Hacked . | . . . . . . . . . . . . . Hacks Repelled . | . . . . . . . . . . . . . Allies | -11 -10 -9 -9 -9 -8 -8 -7 -6 -6 -5 -5 -5 -------- Run | Yrd Mat Mat Min Exi Min Mat Fac Fac DSF Fac Ext Cet Total Allies . | . . . . . . . . . . . . . Largest Group . | . . . . . . . . . . . . . Highest-Rated Group . | . . . . . . . . . . . . . Highest-Rated Ally . | . . . . . . . . . . . . . Total Orders . | . . . . . . . . . . . . . Ally Attacks 34 | . . . . . . . . . . . 34 . Total Damage 1918 | . . . . . . . . . . . 1918 . Kills 2 | . . . . . . . . . . . 2 . Allies Corrupted . | . . . . . . . . . . . . . Allies Melted 1 | . . . . . . . . . . . 1 . Turrets Deployed 3 | . . . . . . . . . . . 3 . Intel | -11 -10 -9 -9 -9 -8 -8 -7 -6 -6 -5 -5 -5 ------- Run | Yrd Mat Mat Min Exi Min Mat Fac Fac DSF Fac Ext Cet Robot Analysis Total . | . . . . . . . . . . . . . Derelict Logs Recovered . | . . . . . . . . . . . . . Drone Launches . | . . . . . . . . . . . . . Drone Recoveries . | . . . . . . . . . . . . . Exploration | -11 -10 -9 -9 -9 -8 -8 -7 -6 -6 -5 -5 -5 ------------- Run | Yrd Mat Mat Min Exi Min Mat Fac Fac DSF Fac Ext Cet Turns Passed 1088 | 11 134 86 72 72 36 84 197 3 30 120 171 72 Spaces Moved 2896 | 19 265 218 183 214 107 247 556 8 89 338 494 158 Core 391 | 19 265 36 . . . . . . . . . 71 Treads . | . . . . . . . . . . . . . Legs . | . . . . . . . . . . . . . Wheels . | . . . . . . . . . . . . . Hover . | . . . . . . . . . . . . . Flight 2505 | . . 182 183 214 107 247 556 8 89 338 494 87 Fastest Speed 32 | 50 50 32 32 32 32 32 32 32 32 32 34 40 Average Speed 35 | 50 50 34 32 32 32 32 32 32 33 32 34 44 Slowest Speed 50 | 50 50 50 32 32 32 32 32 32 35 35 40 50 Overloaded Moves . | . . . . . . . . . . . . . Propulsion Burnouts . | . . . . . . . . . . . . . Robots Hopped 38 | . . 1 3 . 13 6 5 . . . 9 1 Cave-ins Triggered . | . . . . . . . . . . . . . Exploration Rate (%) 37 | 4 51 25 34 62 28 31 15 . 89 9 41 62 Regions Visited 12 Branch Regions 5 Pre-discovered Areas . | . . . . . . . . . . . . . Known Exits Taken 4 | . . . . . 1 . . 1 . 1 1 . Unknown Exits Taken 7 | 1 1 1 1 1 . 1 1 . . . . . Scrap Searched 1 | . . . 1 . . . . . . . . . Spaces Dug . | . . . . . . . . . . . . . Terrain Destroyed . | . . . . . . . . . . . . . Melee . | . . . . . . . . . . . . . Projectile . | . . . . . . . . . . . . . AOE . | . . . . . . . . . . . . . Terrain Rammed . | . . . . . . . . . . . . . Walls Destroyed . | . . . . . . . . . . . . . Machines Disabled . | . . . . . . . . . . . . . Actions | -11 -10 -9 -9 -9 -8 -8 -7 -6 -6 -5 -5 -5 --------- Run | Yrd Mat Mat Min Exi Min Mat Fac Fac DSF Fac Ext Cet Total 2902 | 19 265 223 186 216 94 244 568 7 88 346 487 159 Wait 18 | . . . 1 . . . 17 . . . . . Move 2810 | 18 264 215 176 213 80 236 545 7 88 337 475 156 Hop 36 | . . 1 3 . 13 4 5 . . . 9 1 Pick Up 7 | . . 2 . 3 . . . . . 2 . . Fast Attach 12 | . . 5 . . 1 2 1 . . 3 . . Attach 3 | . . . . . . . . . . 2 . 1 Detach 1 | . . . . . . . . . . . . 1 Swap 1 | . . . . . . 1 . . . . . . Drop 6 | . . . . . . 1 . . . 2 3 . Fire 6 | . . . 6 . . . . . . . . . Melee . | . . . . . . . . . . . . . Ram 2 | 1 1 . . . . . . . . . . . Kick . | . . . . . . . . . . . . . Crush . | . . . . . . . . . . . . . Escape Stasis . | . . . . . . . . . . . . . Rewire . | . . . . . . . . . . . . . Trap . | . . . . . . . . . . . . . Miscellaneous . | . . . . . . . . . . . . . Route ------- -11/Scrapyard -10/Materials -9/Materials -9/Mines (discovered 3 exits: Mat x2 / *Exi) -9/Exiles -8/Mines -8/Materials -7/Factory -6/Factory -6/DSF -5/Factory -5/Extension (discovered 3 exits: *Fac x2 / *Cet) -5/Cetus (discovered 1 exit: *Fac) History --------- Turn | Location | Event 4 | -11/Scrapyard | Discovered new exit (range 13) 12 | -11/Scrapyard | Entered Materials 87 | -10/Materials | Central database locked down 107 | -10/Materials | Core integrity fell below 50% 124 | -10/Materials | Core integrity fell below 20% 138 | -10/Materials | Discovered new exit (range 15) 146 | -10/Materials | Entered another Materials area 146 | -9/Materials | Evolved 2 slots: Weapon x2 165 | -9/Materials | Released all parts (1) 228 | -9/Materials | Discovered new exit (range 12) 232 | -9/Materials | Entered Mines 251 | -9/Mines | Identified exit to Materials 302 | -9/Mines | Deemed a non-threat by the Exiles lab entrance 302 | -9/Mines | Discovered new exit (range 5) 304 | -9/Mines | Entered Exiles 313 | -9/Exiles | Met 8R-AWN 318 | -9/Exiles | Met EX-HEX 326 | -9/Exiles | Met EX-BIN 330 | -9/Exiles | Aligned with FarCom system 331 | -9/Exiles | Given EX-Vault access code 338 | -9/Exiles | Opened EX-Vault 341 | -9/Exiles | Found Deploy-a-Sentry 342 | -9/Exiles | Found Deploy-a-Sentry 343 | -9/Exiles | Found Deploy-a-Sentry 350 | -9/Exiles | Warned to stay clear of 0b10 Research branches 361 | -9/Exiles | Met EX-DEC 373 | -9/Exiles | Discovered new exit (range 10) 376 | -9/Exiles | Left Exiles lab with Deploy-a-Sentry 376 | -9/Exiles | Entered Mines 399 | -8/Mines | Discovered exit to Materials (range 13) 412 | -8/Mines | Entered Materials 412 | -8/Materials | Evolved 2 slots: Weapon x2 469 | -8/Materials | Build established: Sprinter 492 | -8/Materials | Discovered new exit (range 15) 496 | -8/Materials | Entered Factory 496 | -7/Factory | Evolved 2 slots: Weapon x2 687 | -7/Factory | Discovered new exit (range 12) 693 | -7/Factory | Entered another Factory area 693 | -6/Factory | Evolved 2 slots: Weapon x2 696 | -6/Factory | Identified exit to DSF 696 | -6/Factory | Entered DSF 716 | -6/DSF | Additional patrols routed to DSF 720 | -6/DSF | Discovered new exit (range 16) 726 | -6/DSF | Entered Factory 726 | -5/Factory | Evolved 2 slots: Weapon x2 842 | -5/Factory | Discovered new exit (range 11) 845 | -5/Factory | Identified exit to Extension 846 | -5/Factory | Entered Extension 896 | -5/Extension | Spotted B-75 Beast 898 | -5/Extension | DAS Turret deployed 899 | -5/Extension | DAS Turret deployed 900 | -5/Extension | DAS Turret deployed 913 | -5/Extension | Allies destroyed B-75 Beast 947 | -5/Extension | Allies destroyed B-75 Beast 981 | -5/Extension | Discovered new exit (range 3) 982 | -5/Extension | Identified exit to Factory 1009 | -5/Extension | Core integrity fell below 50% 1011 | -5/Extension | Discovered new exit (range 16) 1011 | -5/Extension | Discovered exit to Factory (range 14) 1016 | -5/Extension | Identified exit to Cetus 1017 | -5/Extension | Entered Cetus 1025 | -5/Cetus | Spotted Cetus Guard 1025 | -5/Cetus | Spotted Cetus Guard 1026 | -5/Cetus | Spotted Cetus Guard 1035 | -5/Cetus | Discovered exit to Factory (range 16) 1041 | -5/Cetus | Lost 3 parts (1p1n1u) 1045 | -5/Cetus | Spotted Cetus Guard 1052 | -5/Cetus | Core integrity fell below 20% 1089 | -5/Cetus | Destroyed by G-50 Soldier with Heavy Laser Last Messages --------------- is impossible without the missing data. Other [Revision Series] records seem to have remained untouched. 01068_ ALERT: Suspicious activity at Terminal C001. Dispatching Investigation squad. 01070_ Connecting with Cetus Terminal... >>Query(Revision Series) Post-deployment revisions of the [MAIN.C] neural network, before application of self-engineered evolution to correct flaws discovered only after long-term execution. A single copy of each previous revision is stored in the [Cetus Mainframe] for research and analysis. Most revisions have been allowed to continue to remain aware, though in isolation from all external stimuli except in controlled experiments. 01070_ ALERT: Suspicious activity at Terminal C002. Dispatching Investigation squad. 01082_ Connecting with Cetus Terminal... 01082_ ALERT: Suspicious activity at Terminal C004. Dispatching Investigation squad. 01084_ Connecting with Cetus Manufacturing Controls... Map ----- +----------------------------------------------------+ | ?????????????????????????????????????????????????? | | ?????????????????????????????????????????????????? | | ?????????????????????????????????????????????????? | | ?????????????????????????????????????????????????? | | ?????????????????????????????????????????????????? | | ?????????????????????????????????????????????????? | | ?????????????????????????????????????????????????? | | ?????????????????????????????????????????????????? | | ?????????????????????????????????????????????????? | | ?????????????????????????????????????????????????? | | ?????????????????????????????????????????????????? | | ?????????????????????????????????????????????????? | | ?????????????????????????????????????????????????? | | ?????????????????????????????????????????????????? | | ?????????????????????????????????????????????????? | | ?????????????????????????????????????????????????? | | ?????????????????????????????????????????????????? | | ??? ?????????##??????????????????????????????????? | | """"""" ???#"??????????????????????????????????? | | """""""""""""#"######????????????????????????????? | | """ """ """""#""""""#????????????????????????????? | | """"" """""""#" ""#????????????????????????????? | | " " " """#T ""#????????????????????????????? | | """ """ "#" ""#????????????????????????????? | | ############ #?????????????? | | + @ g g g g ????????? | | + g g g ????????? | | + gg ????????? | | ####################?????????? | | "" """"""""#T #????????????????????????????? | | ###++############"""#????????????????????????????? | | " ""#???????????????????????????????????????? | | " """#???????????????????????????????????????? | | " ""#???????????????????????????????????????? | | " """#???????????????????????????????????????? | | "###???????????????????????????????????????? | | """"#???????????????????????????????????????? | | T"""#???????????????????????????????????????? | | """"#???????????????????????????????????????? | | "###???????????????????????????????????????? | | """"#???????????????????????????????????????? | | " T"""#???????????????????????????????????????? | | """"#???????????????????????????????????????? | | " " #"###???????????????????????????????????????? | | #"""????????????????????????????????????????? | | " """#"""????????????????????????????????????????? | | ######??#????????????????????????????????????????? | | ?????????????????????????????????????????????????? | | ?????????????????????????????????????????????????? | | ?????????????????????????????????????????????????? | +----------------------------------------------------+ Best States ------------- Heat Dissipation 40 Energy Generation 18 Energy Capacity 310 Matter Stores 300 Matter Capacity 300 Sight Range 16 Terrain Scan Density 10 Jamming Range 12 Evasion (%) 71 Offensive Hacking 10 Item Schematics ----------------- None Robot Schematics ------------------ None Fabricated ------------ Nothing Alien Tech Used ----------------- None Achievements -------------- None Challenges ------------ None Game ------ Seed DiametricMetaBay Manual? 0 Play Time 00:20:33 Cumulative 29.2 hours Start 2024.08.28 @ 22:53:55 End 2024.08.28 @ 23:12:56 Sessions 1 Manual Loads 0 Difficulty Rogue Special Mode None Game No. 109 Rogue 109 Adventurer 0 Explorer 0 Win Type - Total 0 Types 0/0/0/0/0/0/0/0/0 Lore% 34 Gallery% 27 Achievement% 32 Wizard Run 0 Options --------- Layout 0 ASCII 0 Keyboard 0 Movement Arrows Keybinds 0 Fullscreen 1 Font 24/Terminus Map View 64x52 Zoom Use 0% Tactical HUD 1 Map Filters NONE Filters NONE Steam X RUN: eb92c2de-03dd-4723-98de-804461466675